bitfinex/quotes_ETHUSD_20230109
["timestamp","ask_amount","ask_price","bid_price","bid_amount"]
[1673305848945,21.3624042,1316.1,1316.0,3.465e-05]
[1673305849401,2.5,1316.0,1315.9,0.25816558]
[1673305849609,6.29766064,1316.0,1315.9,0.25816558]
[1673305849935,13.96244064,1316.0,1315.9,0.25816558]
[1673305850095,15.08291834,1316.0,1315.9,0.25816558]
[1673305851354,22.73169834,1316.0,1315.9,0.25816558]
[1673305851582,22.68169834,1316.0,1315.9,0.25816558]
[1673305851806,15.08291834,1316.0,1315.9,0.25816558]
[1673305852037,33.18019489,1316.0,1315.9,0.25816558]
[1673305852266,33.75029489,1316.0,1315.9,0.25816558]
[1673305852407,33.92506075,1316.0,1315.9,0.25816558]
[1673305852615,36.92506075,1316.0,1315.9,0.25816558]
[1673305853194,34.42506075,1316.0,1315.9,0.25816558]
[1673305853416,18.0127651,1316.0,1315.9,0.25816558]
[1673305853563,25.43677924,1316.0,1315.9,0.25816558]
[1673305854099,10.23921924,1316.0,1315.9,0.25816558]
[1673305854521,16.71325719,1316.0,1315.9,0.25816558]
[1673305854712,25.43672157,1316.0,1315.9,0.25816558]
[1673305854926,25.61148743,1316.0,1315.9,0.25816558]
[1673305855510,0.002,1316.0,1315.9,24.4854991]
[1673305855719,0.437,1316.1,1315.9,30.28816875]
[1673305855870,0.437,1316.1,1316.0,3.3001]
[1673305856085,0.437,1316.1,1316.0,23.59644]
[1673305856348,0.437,1316.1,1316.0,23.65035974]
[1673305856556,1.12468438,1316.3,1316.0,27.44802038]
[1673305856765,0.066,1316.4,1316.2,1.227]
[1673305857084,1.19068438,1316.5,1316.3,15.1941]
[1673305857237,1.12468438,1316.5,1316.3,15.24801974]
[1673305858030,1.12468438,1316.5,1316.3,7.65096974]
[1673305858408,1.12468438,1316.5,1316.3,17.74801974]
[1673305858627,1.12468438,1316.5,1316.3,10.24248871]
[1673305859682,0.05,1316.4,1316.3,10.24248871]
[1673305859904,1.12468438,1316.5,1316.3,25.43658871]
[1673305860072,1.12468438,1316.6,1316.3,25.43658871]
[1673305860282,1.12468438,1316.6,1316.3,17.83953871]
[1673305860496,2.80540093,1316.6,1316.3,25.43658871]
[1673305860809,2.80540093,1316.6,1316.3,17.83953871]
[1673305861756,2.80540093,1316.6,1316.3,26.66658871]
[1673305862010,2.87140093,1316.7,1316.4,5.82666064]
[1673305862173,1.12468438,1316.7,1316.4,9.00690532]
[1673305862400,1.12468438,1316.7,1316.5,17.69178]
[1673305862730,1.12468438,1316.6,1316.5,0.05391974]
[1673305862938,1.12468438,1316.6,1316.4,7.45036974]
[1673305863170,1.12468438,1316.6,1316.4,7.51636974]
[1673305863744,2.80540093,1316.6,1316.4,7.51636974]
[1673305864009,1.12468438,1316.6,1316.4,9.18917436]
[1673305864219,2.80540093,1316.6,1316.4,1.73880462]
[1673305864377,2.80540093,1316.6,1316.4,1.67280462]
[1673305865024,10.40076093,1316.6,1316.4,1.67280462]
[1673305865289,10.40076093,1316.6,1316.3,8.23272]
[1673305865290,2.87140093,1316.6,1316.3,15.82953]
[1673305865501,2.80540093,1316.6,1316.3,8.23272]
[1673305865813,2.80540093,1316.6,1316.3,23.42682]
[1673305866041,1.12468438,1316.6,1316.3,27.22448064]
[1673305866359,1.19112109,1316.7,1316.5,15.19178]
[1673305866499,1.69720328,1316.8,1316.6,17.40454]
[1673305866500,1.14160782,1316.8,1316.6,17.40454]
[1673305866705,1.14160782,1316.8,1316.6,2.2799]
[1673305866706,0.01648673,1316.8,1316.6,2.2799]
[1673305866964,1.14160782,1316.8,1316.6,2.2139]
[1673305867124,0.01648673,1316.8,1316.6,2.2139]
[1673305867338,1.14160782,1316.8,1316.6,4.7139]
[1673305867586,1.14160782,1316.8,1316.6,8.54025347]
[1673305867587,0.01648673,1316.8,1316.6,8.54025347]
[1673305867775,0.01648673,1316.8,1316.6,8.60625347]
[1673305867989,0.01648673,1316.8,1316.6,16.20149347]
[1673305868551,0.01648673,1316.8,1316.6,8.60625347]
[1673305869593,0.01648673,1316.8,1316.6,16.20147347]
[1673305870209,0.01648673,1316.8,1316.7,6.25166064]
[1673305870423,2.88689616,1317.2,1316.8,2.5]
[1673305870743,1.14017961,1317.2,1317.0,1.227]
[1673305871072,16.32389961,1317.2,1316.9,0.17330001]
[1673305871228,8.79803961,1317.2,1316.9,1.232]
[1673305871436,1.20617961,1317.2,1316.9,1.232]
[1673305871649,0.01505852,1317.2,1316.9,3.889306]
[1673305872108,0.01705852,1317.2,1316.9,11.482796]
[1673305872296,0.01505852,1317.2,1317.0,2.5]
[1673305872718,0.01505852,1317.2,1317.0,10.09297]
[1673305872946,0.01505852,1317.2,1317.0,10.15897]
[1673305873138,0.01505852,1317.2,1317.0,13.0822956]
[1673305873867,0.01505852,1317.2,1317.0,5.4893256]
[1673305874079,26.58829916,1317.2,1317.0,0.066]
[1673305874294,3.79766064,1317.1,1316.7,20.5341]
[1673305874502,26.57495064,1317.1,1316.7,20.5341]
[1673305874715,26.64095064,1317.1,1316.7,20.5341]
[1673305874907,27.21065064,1317.1,1316.7,20.5341]
[1673305875117,27.21065064,1317.1,1316.7,12.8791]
[1673305875993,3.86366064,1317.1,1316.7,38.6377129]
[1673305876208,3.79766064,1317.1,1316.8,2.5]
[1673305876625,3.79766064,1317.1,1316.8,10.09405]
[1673305876626,11.39022064,1317.1,1316.8,10.09405]
[1673305876833,11.45622064,1317.1,1316.8,2.566]
[1673305877165,0.066,1317.1,1316.8,2.5]
[1673305877398,0.65065852,1317.2,1316.8,29.85663429]
[1673305877541,0.01505852,1317.2,1316.8,29.92263429]
[1673305878534,0.01505852,1317.2,1317.1,2.0]
[1673305879430,0.01505852,1317.2,1317.1,19.627758]
[1673305879674,0.01505852,1317.2,1317.1,18.466758]
[1673305879849,0.01505852,1317.2,1317.1,2.066]
[1673305880059,0.01505852,1317.2,1317.1,2.0]
[1673305882369,15.19877852,1317.2,1317.1,2.0]
[1673305882625,15.26477852,1317.2,1317.1,2.0]
[1673305883687,7.67291852,1317.2,1317.1,2.0]
[1673305884002,0.08105852,1317.2,1317.1,2.0]
[1673305884157,0.01505852,1317.2,1317.1,2.0]
[1673305885889,7.60691852,1317.2,1317.1,2.0]
[1673305886065,0.08105852,1317.2,1317.1,1.80000001]
[1673305886270,0.01505852,1317.2,1317.1,1.80000001]
[1673305886697,0.01505852,1317.2,1317.1,24.57729001]
[1673305886904,0.01505852,1317.2,1317.1,24.64329001]
[1673305887119,0.01505852,1317.2,1317.1,28.18325901]
[1673305887619,0.01505852,1317.2,1317.1,5.40596901]
[1673305888108,0.01505852,1317.2,1317.1,7.90596901]
[1673305889147,0.01505852,1317.2,1317.1,15.49839901]
[1673305889370,0.01505852,1317.2,1317.1,23.09082901]
[1673305889724,0.01505852,1317.2,1317.1,7.90596901]
[1673305889946,5.88559668,1317.4,1317.2,2.5]
[1673305890275,5.88559668,1317.4,1317.2,4.2418399]
[1673305890276,0.066,1317.4,1317.2,4.2418399]
[1673305890488,30.89684673,1317.5,1317.2,1.7418399]
[1673305891247,15.26328673,1317.5,1317.2,1.7418399]
[1673305891626,22.85395673,1317.5,1317.2,1.7418399]
[1673305891825,7.67274673,1317.5,1317.2,9.3336499]
[1673305892200,0.08248673,1317.5,1317.2,9.3996499]
[1673305892365,0.08248673,1317.5,1317.3,1.23]
[1673305892366,0.01648673,1317.5,1317.3,1.23]
[1673305892717,0.01648673,1317.5,1317.4,15.1814]
[1673305892941,0.01648673,1317.5,1317.4,7.6567]
[1673305893243,0.01648673,1317.5,1317.4,1.48]
[1673305893460,0.01648673,1317.5,1317.4,1.414]
[1673305893766,0.01648673,1317.5,1317.4,16.5954]
[1673305893922,0.01648673,1317.5,1317.4,11.8893317]
[1673305894138,0.01648673,1317.5,1317.4,4.2986317]
[1673305894400,8.73173782,1317.5,1317.3,0.066]
[1673305894707,25.65871437,1317.5,1317.2,0.5696]
[1673305894933,2.88832437,1317.5,1317.2,15.18357]
[1673305895092,2.82232437,1317.5,1317.2,17.533746]
[1673305895302,2.82232437,1317.5,1317.2,25.123606]
[1673305895303,1.14360782,1317.5,1317.2,25.123606]
[1673305895513,1.14360782,1317.5,1317.2,26.352606]
[1673305895514,0.01648673,1317.5,1317.2,26.352606]
[1673305895943,0.01648673,1317.5,1317.3,2.5]
[1673305896129,0.01648673,1317.5,1317.4,22.7721]
[1673305896339,0.01648673,1317.5,1317.4,25.36531]
[1673305897391,1.76052109,1317.7,1317.4,30.38297064]
[1673305897603,2.87183764,1317.8,1317.6,1.226]
[1673305897812,2.87183764,1317.8,1317.5,4.014]
[1673305897813,1.12512109,1317.7,1317.5,4.014]
[1673305898070,2.87183764,1317.8,1317.5,4.292811]
[1673305898240,1.12512109,1317.7,1317.5,11.652841]
[1673305898451,2.87183764,1317.8,1317.5,25.681101]
[1673305898668,2.80583764,1317.8,1317.6,1.226]
[1673305898873,1.12512109,1317.8,1317.7,2.5]
[1673305899119,1.12512109,1317.8,1317.7,10.46158]
[1673305899441,2.89414668,1317.9,1317.7,8.02758]
[1673305899655,2.89414668,1317.9,1317.7,15.61656]
[1673305899656,2.82814668,1317.9,1317.7,15.61656]
[1673305900285,2.82814668,1317.9,1317.7,0.4386]
[1673305900286,1.12512109,1317.8,1317.7,0.4386]
[1673305900444,1.12512109,1317.8,1317.6,8.81521]
[1673305900650,1.12512109,1317.8,1317.6,16.47043]
[1673305900859,1.12512109,1317.8,1317.7,2.5]
[1673305901088,2.82814668,1317.9,1317.7,2.5]
[1673305901291,1.14743013,1317.9,1317.7,25.26694]
[1673305901604,0.02230904,1317.9,1317.7,29.218834]
[1673305901974,0.02430904,1317.9,1317.8,1.22]
[1673305902121,0.02230904,1317.9,1317.8,23.9852]
[1673305902331,0.02230904,1317.9,1317.8,24.2812]
[1673305903401,0.018156,1318.0,1317.9,2.5]
[1673305903766,0.018156,1318.0,1317.9,34.13697101]
[1673305903964,0.018156,1318.0,1317.9,34.20297101]
[1673305904494,0.018156,1318.1,1318.0,2.5]
[1673305904671,0.018156,1318.1,1318.0,30.28941064]
[1673305904865,0.018156,1318.1,1318.0,30.35541064]
[1673305905074,0.018156,1318.1,1318.0,34.76131874]
[1673305905637,0.018156,1318.1,1318.0,4.4719081]
[1673305905850,0.018156,1318.1,1318.0,16.5885]
[1673305906047,0.018156,1318.1,1318.0,16.6545]
[1673305906910,0.018156,1318.1,1318.0,1.48]
[1673305907223,0.018156,1318.1,1317.9,11.28436074]
[1673305907376,0.018156,1318.1,1318.0,22.76175]
[1673305907581,0.018156,1318.1,1318.0,26.61212714]
[1673305907795,0.018156,1318.1,1318.0,26.84212714]
[1673305908470,0.018156,1318.1,1318.0,3.85037714]
[1673305908701,0.018156,1318.1,1317.9,22.66950138]
[1673305909209,0.018156,1318.1,1318.0,29.01941064]
[1673305909421,0.02058519,1318.2,1318.1,2.5]
[1673305909738,0.02058519,1318.2,1318.1,29.28767064]
[1673305910070,0.02058519,1318.2,1318.1,29.35367064]
[1673305910214,0.02058519,1318.2,1318.1,34.9082927]
[1673305910795,0.02058519,1318.2,1318.1,34.92352076]
[1673305911157,0.02058519,1318.2,1318.1,39.14452076]
[1673305911361,0.74188769,1318.3,1318.2,6.536]
[1673305911632,0.74188769,1318.3,1318.2,31.08196064]
[1673305911843,0.74188769,1318.3,1318.2,36.12405432]
[1673305912994,0.74188769,1318.3,1318.2,34.12405432]
[1673305916547,0.74188769,1318.3,1318.2,10.13575432]
[1673305916762,0.74188769,1318.3,1318.2,31.66405432]
[1673305916959,0.74188769,1318.3,1318.2,24.07795432]
[1673305917170,0.74188769,1318.3,1318.2,5.10809368]
[1673305917529,0.74188769,1318.3,1318.2,0.066]
[1673305917742,0.74188769,1318.3,1318.1,24.07078806]
[1673305917901,0.74188769,1318.3,1318.1,27.8684487]
[1673305918885,0.74388769,1318.3,1318.1,27.8664487]
[1673305919086,0.74188769,1318.3,1318.1,27.8684487]
[1673305919303,0.74188769,1318.3,1318.1,32.84010857]
[1673305919636,0.74188769,1318.3,1318.2,3.22]
[1673305919857,0.74188769,1318.3,1318.2,25.9783]
[1673305920005,0.74188769,1318.3,1318.2,24.0443]
[1673305920322,0.74188769,1318.3,1318.2,28.08583086]
[1673305920681,0.74188769,1318.3,1318.2,33.1134915]
[1673305924488,0.74188769,1318.3,1318.2,39.8987346]
[1673305924701,0.74188769,1318.3,1318.2,36.1134915]
[1673305924933,0.74188769,1318.3,1318.2,39.8987346]
[1673305925325,0.74188769,1318.3,1318.2,17.1404346]
[1673305925541,0.74188769,1318.3,1318.2,37.85720374]
[1673305925749,0.74188769,1318.3,1318.2,43.37920374]
[1673305925750,1e-08,1318.3,1318.2,43.37920374]
[1673305928573,4.87e-06,1318.4,1318.3,2.0]
[1673305928782,0.02386179,1318.5,1318.4,30.3398]
[1673305929053,0.02386179,1318.5,1318.4,40.94607262]
[1673305929364,1.79e-06,1318.5,1318.4,40.94607262]
[1673305929674,7.81e-06,1318.6,1318.5,24.75311]
[1673305929903,7.81e-06,1318.6,1318.5,37.83632978]
[1673305930467,7.81e-06,1318.6,1318.5,37.85155322]
[1673305930676,0.02673611,1318.7,1318.5,44.74806474]
[1673305930886,0.02673611,1318.7,1318.6,15.34266064]
[1673305931153,0.02673611,1318.7,1318.6,9.88066064]
[1673305931357,0.02673611,1318.7,1318.6,8.08466064]
[1673305931515,0.02673611,1318.7,1318.6,11.44746064]
[1673305931726,0.02673611,1318.7,1318.6,14.9228842]
[1673305933220,0.02673611,1318.7,1318.6,30.0904842]
[1673305937409,0.02673611,1318.7,1318.6,22.5066842]
[1673305937623,0.02673611,1318.7,1318.6,30.0904842]
[1673305937829,0.02673611,1318.7,1318.6,22.5066842]
[1673305938257,0.02673611,1318.7,1318.6,30.0904842]
[1673305939333,0.02673611,1318.7,1318.6,31.3204842]
[1673305939546,0.02673611,1318.7,1318.6,38.71277589]
[1673305939750,0.02375602,1318.8,1318.7,2.0]
[1673305939971,0.02375602,1318.8,1318.7,33.89972497]
[1673305940188,0.02375602,1318.8,1318.7,33.96572497]
[1673305940565,0.02375602,1318.8,1318.7,37.73928411]
[1673305940926,0.02375602,1318.8,1318.7,36.72432872]
[1673305941114,5.602e-05,1318.8,1318.7,36.72432872]
[1673305941294,0.7213025,1318.9,1318.8,24.74795]
[1673305941504,0.7213025,1318.9,1318.8,37.47119451]
[1673305944623,0.7213025,1318.9,1318.8,37.46919451]
[1673305944777,0.7213025,1318.9,1318.8,37.47119451]
[1673305945700,0.7213025,1318.9,1318.8,19.07689451]
[1673305945958,0.7213025,1318.9,1318.8,22.02896064]
[1673305946179,0.7213025,1318.9,1318.8,19.02896064]
[1673305946902,0.7213025,1318.9,1318.8,11.44631064]
[1673305947077,0.7213025,1318.9,1318.8,19.02896064]
[1673305947517,0.7213025,1318.9,1318.8,3.86366064]
[1673305947697,0.7213025,1318.9,1318.7,0.066]
[1673305947698,17.1114425,1318.9,1318.7,0.066]
[1673305948066,17.1114425,1318.9,1318.6,0.066]
[1673305948067,27.56272232,1318.9,1318.6,0.066]
[1673305948236,3.12249327,1318.8,1318.3,2.0]
[1673305948589,22.75053,1318.7,1318.4,3.79766064]
[1673305948750,22.75053,1318.7,1318.5,3.79766064]
[1673305948751,22.81653,1318.7,1318.5,3.79766064]
[1673305949236,15.23302,1318.7,1318.5,3.79766064]
[1673305949396,16.35551327,1318.7,1318.5,3.79766064]
[1673305951797,23.93902327,1318.7,1318.5,3.79766064]
[1673305953199,23.93902327,1318.7,1318.4,0.066]
[1673305953423,4.35249327,1318.6,1318.3,0.066]
[1673305953584,15.16874,1318.5,1318.3,3.79766064]
[1673305953803,15.23474,1318.5,1318.2,3.066]
[1673305954050,1.221,1318.4,1318.1,0.066]
[1673305954266,1.221,1318.4,1318.1,3.79766064]
[1673305954475,8.80617,1318.4,1318.1,3.79766064]
[1673305954689,8.87217,1318.4,1318.1,6.7743177]
[1673305954905,8.87217,1318.4,1318.1,6.8403177]
[1673305955494,24.04229,1318.4,1318.1,3.04265706]
[1673305955706,8.87195,1318.4,1318.1,2.97665706]
[1673305956120,16.45712,1318.4,1318.1,2.97665706]
[1673305958327,24.04229,1318.4,1318.1,2.97665706]
[1673305960331,22.82129,1318.4,1318.1,2.97665706]
[1673305960761,4.03220982,1318.3,1318.0,0.066]
[1673305960979,1.12249327,1318.3,1318.0,26.55938064]
[1673305961191,1.12249327,1318.3,1318.0,26.62538064]
[1673305961422,1.12249327,1318.3,1318.0,19.03813064]
[1673305961589,1.12249327,1318.3,1318.0,26.62538064]
[1673305961797,2.80320982,1318.3,1318.0,30.06057854]
[1673305962146,5.22271262,1318.4,1318.3,1.87750673]
[1673305962469,2.97371655,1318.4,1318.3,1.87750673]
[1673305962686,2.90771655,1318.4,1318.3,1.87750673]
[1673305963617,5.15671262,1318.4,1318.3,1.87750673]
[1673305963828,5.15671262,1318.4,1318.3,25.5870044]
[1673305963829,0.066,1318.4,1318.3,25.5870044]
[1673305963995,2.88399607,1318.6,1318.3,25.6530044]
[1673305964390,2.88399607,1318.6,1318.3,29.45066504]
[1673305964391,0.569,1318.6,1318.3,29.45066504]
[1673305964592,13.31914116,1318.7,1318.3,29.45066504]
[1673305964924,2.24899607,1318.6,1318.3,29.45066504]
[1673305965082,11.07689607,1318.7,1318.3,29.45066504]
[1673305965291,11.07689607,1318.7,1318.4,3.0]
[1673305965292,13.88814116,1318.7,1318.4,3.0]
[1673305965509,13.31914116,1318.7,1318.4,13.8298565]
[1673305965717,13.31914116,1318.7,1318.4,13.8958565]
[1673305965718,5.12624116,1318.7,1318.4,13.8958565]
[1673305966167,5.12624116,1318.7,1318.4,21.4808065]
[1673305966332,5.12624116,1318.7,1318.4,29.0657565]
[1673305966538,2.31499607,1318.7,1318.4,32.86341714]
[1673305966755,2.31499607,1318.8,1318.4,40.86341714]
[1673305967012,2.24899607,1318.8,1318.6,22.7514]
[1673305967334,2.24899607,1318.8,1318.6,25.47230606]
[1673305968143,2.24899607,1318.8,1318.6,2.72090606]
[1673305968355,2.24899607,1318.8,1318.5,3.86366064]
[1673305968356,27.80835116,1318.8,1318.5,3.86366064]
[1673305968568,2.24899607,1318.7,1318.5,11.38201064]
[1673305968745,5.12624116,1318.8,1318.5,19.03238064]
[1673305968974,5.12624116,1318.8,1318.5,26.61675064]
[1673305969183,5.12624116,1318.8,1318.5,30.71829235]
[1673305969691,3.24873443,1318.8,1318.5,30.71829235]
[1673305969901,3.18273443,1318.8,1318.5,30.71829235]
[1673305970112,2.24899607,1318.7,1318.5,30.71829235]
[1673305971216,2.24899607,1318.7,1318.5,11.75189171]
[1673305971584,2.24899607,1318.7,1318.5,19.33626171]
[1673305972007,2.24899607,1318.7,1318.5,4.16754171]
[1673305972376,1.12486566,1318.6,1318.4,29.6341165]
[1673305972680,1.12486566,1318.6,1318.4,33.43177714]
[1673305972897,2.81197634,1318.6,1318.4,33.43177714]
[1673305973629,9.89824607,1318.7,1318.4,32.86267714]
[1673305973630,2.87797634,1318.7,1318.4,32.86267714]
[1673305973841,1.12486566,1318.6,1318.4,32.86267714]
[1673305974000,2.81197634,1318.6,1318.4,17.69322714]
[1673305974216,2.81197634,1318.6,1318.4,6.3110665]
[1673305974217,10.39598634,1318.6,1318.4,6.3110665]
[1673305974438,1.12486566,1318.5,1318.4,3.066]
[1673305974657,2.81197634,1318.5,1318.4,3.0]
[1673305976306,2.81197634,1318.5,1318.4,10.58495]
[1673305976568,1.12486566,1318.5,1318.4,10.65095]
[1673305978102,1.12486566,1318.5,1318.4,3.066]
[1673305978325,1.12486566,1318.5,1318.4,5.97747777]
[1673305978553,1.12486566,1318.5,1318.4,3.066]
[1673305978751,10.46181634,1318.6,1318.4,3.0]
[1673305979179,1.12486566,1318.5,1318.4,3.0]
[1673305980302,8.70923566,1318.5,1318.4,3.0]
[1673305980550,10.46234634,1318.5,1318.4,3.0]
[1673305980757,2.87797634,1318.5,1318.4,3.0]
[1673305980976,26.68921675,1318.5,1318.4,3.0]
[1673305981296,17.48373607,1318.5,1318.4,3.0]
[1673305981469,27.87976821,1318.5,1318.4,3.0]
[1673305982122,25.06810607,1318.5,1318.4,3.0]
[1673305982723,25.63077214,1318.5,1318.4,3.0]
[1673305983202,1.75401386,1318.5,1318.4,18.4699]
[1673305983371,2.81344022,1318.5,1318.4,18.5359]
[1673305983582,1.68801386,1318.5,1318.4,3.366]
[1673305983881,2.81344053,1318.5,1318.4,10.88495]
[1673305984083,2.81344053,1318.5,1318.4,10.95095]
[1673305984301,2.81344053,1318.5,1318.4,3.366]
[1673305984557,2.81344053,1318.5,1318.4,10.88495]
[1673305984719,2.81344053,1318.5,1318.4,10.95095]
[1673305984720,3.93870504,1318.5,1318.4,10.95095]
[1673305984928,1.12656641,1318.5,1318.4,29.91851064]
[1673305985135,2.88058027,1318.6,1318.4,29.91851064]
[1673305985454,1.12656641,1318.6,1318.5,26.55077064]
[1673305985701,1.12656641,1318.6,1318.5,30.3669427]
[1673305986521,2.81458027,1318.6,1318.5,30.3669427]
[1673305986848,1.12656641,1318.6,1318.5,30.3669427]
[1673305988025,1.12656641,1318.6,1318.5,30.5969427]
[1673305988548,1.19256641,1318.7,1318.5,46.58318198]
[1673305988771,1.12656641,1318.7,1318.6,3.79766064]
[1673305988919,1.12656641,1318.7,1318.6,36.75337884]
[1673305989124,1.12656641,1318.7,1318.6,36.81937884]
[1673305989380,1.12656641,1318.7,1318.6,36.25037884]
[1673305989551,1.12656641,1318.7,1318.6,41.24661812]
[1673305989755,1.68801386,1318.8,1318.6,41.24661812]
[1673305989756,1.12656641,1318.8,1318.6,41.24661812]
[1673305990020,1.12656641,1318.8,1318.7,6.02766064]
[1673305990187,1.12656641,1318.8,1318.7,33.19098245]
[1673305990615,3.53588277,1318.9,1318.7,44.18856823]
[1673305990914,3.53588277,1318.9,1318.8,28.54561064]
[1673305991125,3.53588277,1318.9,1318.8,28.61161064]
[1673305991334,3.53588277,1318.9,1318.8,28.84161064]
[1673305991591,3.53588277,1318.9,1318.8,34.21885989]
[1673305992433,1.84786891,1318.9,1318.8,34.21885989]
[1673305992618,0.7213025,1318.9,1318.8,40.98509917]
[1673305992827,0.7213025,1318.9,1318.8,42.20509917]
[1673305993910,0.7213025,1318.9,1318.8,38.43885989]
[1673305995864,0.7213025,1318.9,1318.8,42.20509917]
[1673305996076,0.7213025,1318.9,1318.8,38.43885989]
[1673305997686,0.06130463,1319.0,1318.8,49.78774917]
[1673305997909,1.12656641,1319.1,1319.0,37.9075]
[1673305997910,0.002,1319.1,1319.0,37.9075]
[1673305998062,0.02673611,1319.2,1319.0,47.45980695]
[1673305998274,0.02673611,1319.2,1319.1,4.02766064]
[1673305998488,0.02673611,1319.2,1319.1,26.77042064]
[1673305998753,0.02673611,1319.2,1319.1,26.83642064]
[1673305998944,0.02673611,1319.2,1319.1,30.96907733]
[1673306001581,0.02873611,1319.2,1319.1,30.96707733]
[1673306001902,0.02673611,1319.2,1319.1,30.96907733]
[1673306002272,15.18743611,1319.2,1319.1,4.09366064]
[1673306002484,0.09273611,1319.2,1319.1,4.02766064]
[1673306002723,16.31400252,1319.2,1319.1,4.02766064]
[1673306002944,8.79965252,1319.2,1319.1,4.02766064]
[1673306003550,1.21930252,1319.2,1319.1,4.02766064]
[1673306003765,1.15330252,1319.2,1319.1,5.9533107]
[1673306003955,1.15330252,1319.2,1319.1,6.0193107]
[1673306004517,0.02673611,1319.2,1319.1,6.0193107]
[1673306004894,7.60708611,1319.2,1319.1,6.0193107]
[1673306005156,7.60708611,1319.2,1319.1,4.09366064]
[1673306005157,15.25343611,1319.2,1319.1,4.09366064]
[1673306005331,1.21930252,1319.2,1319.1,4.02766064]
[1673306005542,0.02673611,1319.2,1319.1,11.60858064]
[1673306005759,0.02673611,1319.2,1319.1,11.67458064]
[1673306005965,1.15330252,1319.2,1319.1,4.09366064]
[1673306006212,1.15330252,1319.2,1319.0,0.066]
[1673306006213,2.84131638,1319.2,1319.0,0.066]
[1673306006370,2.84131638,1319.2,1319.0,3.79766064]
[1673306006371,25.58236638,1319.2,1319.0,3.79766064]
[1673306006580,23.96035252,1319.2,1319.0,3.79766064]
[1673306006798,8.79965252,1319.2,1319.0,3.79766064]
[1673306007049,16.38000252,1319.2,1319.0,3.79766064]
[1673306007474,1.21930252,1319.2,1319.0,3.79766064]
[1673306007669,8.73369252,1319.2,1319.0,5.01431495]
[1673306007859,8.79969252,1319.2,1319.0,5.08031495]
[1673306008071,8.79969252,1319.2,1319.0,3.86366064]
[1673306008295,8.79969252,1319.2,1319.0,3.79766064]
[1673306008632,8.79970252,1319.2,1319.0,3.79766064]
[1673306009976,23.96050252,1319.2,1319.0,3.79766064]
[1673306011657,23.96050252,1319.2,1319.0,3.74766064]
[1673306012196,23.96050252,1319.2,1318.9,8.78730249]
[1673306012411,25.64851638,1319.2,1318.9,12.58496313]
[1673306012636,25.69851638,1319.2,1318.9,12.58496313]
[1673306012784,24.01050252,1319.2,1318.9,12.58496313]
[1673306012993,24.01050252,1319.2,1318.9,13.65103376]
[1673306014495,0.05,1319.1,1318.9,13.65103376]
[1673306014721,23.96050252,1319.2,1318.9,13.65103376]
[1673306015252,25.64851638,1319.2,1318.9,13.65103376]
[1673306016003,23.96050252,1319.2,1318.9,13.65103376]
[1673306016219,25.64851638,1319.2,1318.9,13.65103376]
[1673306016956,1.12656641,1319.1,1318.9,13.65103376]
[1673306017110,16.28917641,1319.1,1318.9,13.65103376]
[1673306017320,16.35517641,1319.1,1318.9,13.65103376]
[1673306017778,23.93661641,1319.1,1318.9,13.65103376]
[1673306021162,25.62463027,1319.1,1318.9,13.65103376]
[1673306021776,10.46175027,1319.1,1318.9,13.65103376]
[1673306022206,1.12656641,1319.0,1318.9,13.65103376]
[1673306022585,1.12656641,1319.0,1318.9,16.65103376]
[1673306024259,2.81458027,1319.0,1318.9,13.65103376]
[1673306024679,1.68801386,1319.0,1318.9,13.65103376]
[1673306026301,3.93870504,1319.0,1318.9,13.65103376]
[1673306026464,2.25069118,1319.0,1318.9,13.65103376]
[1673306026679,3.94137384,1319.0,1318.9,13.65103376]
[1673306028244,5.06235332,1319.0,1318.9,13.65103376]
[1673306028483,5.12835332,1319.0,1318.9,13.65103376]
[1673306028685,5.12835332,1319.0,1318.9,12.92973127]
[1673306028899,2.31669118,1319.0,1318.9,12.92973127]
[1673306029115,5.06235332,1319.0,1318.9,12.92973127]
[1673306029332,2.31669118,1319.0,1318.9,12.92973127]
[1673306029537,2.25069118,1319.0,1318.9,12.92973127]
[1673306029959,3.94284007,1319.0,1318.9,12.92973127]
[1673306030432,3.94284007,1319.0,1318.9,20.51180127]
[1673306030576,1.69214889,1319.0,1318.9,20.51180127]
[1673306030785,1.69214889,1319.0,1318.9,12.92973127]
[1673306031977,3.94284007,1319.0,1318.9,12.92973127]
[1673306032180,1.69214889,1319.0,1318.9,12.92973127]
[1673306032396,2.82061173,1319.0,1318.9,12.92973127]
[1673306032610,1.69214889,1319.0,1318.9,12.92973127]
[1673306033219,1.69214889,1319.0,1318.9,20.51180127]
[1673306034093,1.82061028,1319.0,1318.9,20.51180127]
[1673306034437,1.82056761,1319.0,1318.9,35.67594127]
[1673306034735,1.82056761,1319.0,1318.9,35.90594127]
[1673306036019,1.82056761,1319.0,1318.9,20.74180127]
[1673306036689,1.82056761,1319.0,1318.9,28.32387127]
[1673306037948,1.12841872,1319.0,1318.9,28.32387127]
[1673306038351,1.12841872,1319.0,1318.9,44.71801127]
[1673306038563,1.12859018,1319.1,1318.9,49.59926317]
[1673306038793,1.12859018,1319.1,1319.0,3.79766064]
[1673306039084,1.12859018,1319.1,1319.0,39.10246177]
[1673306039298,1.12859018,1319.1,1319.0,31.58696177]
[1673306042090,1.07859018,1319.1,1319.0,31.58696177]
[1673306044345,1.07859018,1319.1,1319.0,24.00546177]
[1673306044554,2.77100321,1319.1,1319.0,8.84246177]
[1673306044760,11.52402421,1319.1,1319.0,0.066]
[1673306044991,26.75186421,1319.1,1318.9,11.066]
[1673306045196,11.59002421,1319.1,1318.9,14.86366064]
[1673306046037,9.33933303,1319.1,1318.9,14.86366064]
[1673306047373,9.33933303,1319.1,1318.9,14.86166064]
[1673306047550,9.33933303,1319.1,1318.9,19.96220263]
[1673306048074,11.59008421,1319.1,1318.9,19.96220263]
[1673306048285,1.75841303,1319.1,1318.9,42.70823263]
[1673306048506,1.69241303,1319.1,1318.9,27.54409263]
[1673306048659,1.69241303,1319.1,1318.9,35.12616263]
[1673306048864,9.27339303,1319.1,1318.9,19.96220263]
[1673306049110,9.33939303,1319.1,1318.9,19.96220263]
[1673306049331,11.59008421,1319.1,1318.9,19.96220263]
[1673306049502,11.59008421,1319.1,1318.9,27.54418263]
[1673306050493,9.33939303,1319.1,1318.9,27.54418263]
[1673306050681,1.75841303,1319.1,1318.9,27.54418263]
[1673306050894,1.69241303,1319.1,1318.9,42.70832263]
[1673306051931,1.1278162,1319.0,1318.9,42.70832263]
[1673306052170,2.82022923,1319.1,1319.0,2.7]
[1673306052481,2.82022923,1319.1,1319.0,10.2815]
[1673306052651,2.82022923,1319.1,1319.0,14.91127526]
[1673306053082,2.82022923,1319.1,1319.0,11.1274359]
[1673306053272,1.69241303,1319.1,1319.0,18.7089359]